fUSD/lending_fUSD_20241111
["ID","MTS","AMOUNT","RATE_DAILY","PERIOD"]
[341919679,1731285041177,-625.43696661,0.00014998,2]
[341919680,1731285041186,-500.0,0.00014998,2]
[341919681,1731285041195,-500.0,0.00014998,2]
[341919682,1731285041203,-500.0,0.00014998,2]
[341919683,1731285041212,-500.0,0.00014998,2]
[341919684,1731285041221,-500.0,0.00014998,2]
[341919685,1731285041231,-500.0,0.00014998,2]
[341919686,1731285041239,-500.0,0.00014998,2]
[341919687,1731285041248,-500.0,0.00014998,2]
[341919688,1731285041257,-500.0,0.00014998,2]
[341919689,1731285041265,-500.0,0.00014998,2]
[341919690,1731285041274,-500.0,0.00014998,2]
[341919691,1731285041283,-514.1,0.00014998,2]
[341919692,1731285041292,-514.1,0.00014998,2]
[341919693,1731285041301,-514.1,0.00014998,2]
[341919694,1731285041310,-514.1,0.00014998,2]
[341919695,1731285041319,-514.1,0.00014998,2]
[341919696,1731285041328,-514.1,0.00014998,2]
[341919697,1731285041337,-514.1,0.00014998,2]
[341919698,1731285041346,-514.1,0.00014998,2]
[341919699,1731285041355,-514.1,0.00014998,2]
[341919700,1731285041364,-514.1,0.00014998,2]
[341919701,1731285041373,-514.1,0.00014998,2]
[341919702,1731285041382,-500.0,0.00014998,2]
[341919703,1731285041391,-500.0,0.00014998,2]
[341919704,1731285041401,-500.0,0.00014998,2]
[341919705,1731285041411,-940.46,0.00014998,2]
[341919706,1731285041420,-940.46,0.00014998,2]
[341919707,1731285041429,-940.46,0.00014998,2]
[341919708,1731285041438,-940.46,0.00014998,2]
[341919709,1731285041447,-940.46,0.00014998,2]
[341919710,1731285041456,-940.46,0.00014998,2]
[341919711,1731285041465,-940.46,0.00014998,2]
[341919712,1731285041474,-940.46,0.00014998,2]
[341919713,1731285041485,-940.46,0.00014998,2]
[341919714,1731285041493,-940.46,0.00014998,2]
[341919715,1731285041502,-940.46,0.00014998,2]
[341919716,1731285041512,-382.56930793,0.00014998,2]
[341919717,1731285041521,-500.0,0.00014998,2]
[341919718,1731285041530,-500.0,0.00014998,2]
[341919719,1731285041540,-500.0,0.00014998,2]
[341919720,1731285041548,-500.0,0.00014998,2]
[341919721,1731285041557,-500.0,0.00014998,2]
[341919722,1731285041566,-500.0,0.00014998,2]
[341919723,1731285041575,-500.0,0.00014998,2]
[341919724,1731285041584,-500.0,0.00014998,2]
[341919725,1731285041593,-500.0,0.00014998,2]
[341919726,1731285041602,-500.0,0.00014998,2]
[341919727,1731285041611,-500.0,0.00014998,2]
[341919728,1731285041621,-500.0,0.00014998,2]
[341919729,1731285041630,-500.0,0.00014998,2]
[341919730,1731285041639,-500.0,0.00014998,2]
[341919731,1731285041648,-451.7,0.00014998,2]
[341919732,1731285041657,-625.0,0.00014998,2]
[341919733,1731285041666,-500.0,0.00014998,2]
[341919734,1731285041675,-433.00295909,0.00014998,2]
[341919735,1731285041685,-1627.91,0.00014998,2]
[341919736,1731285041694,-1627.91,0.00014998,2]
[341919737,1731285041703,-1627.91,0.00014998,2]
[341919738,1731285041712,-1627.91,0.00014998,2]
[341919739,1731285041721,-1627.91,0.00014998,2]
[341919740,1731285041732,-1627.91,0.00014998,2]
[341919741,1731285041741,-1627.91,0.00014998,2]
[341919742,1731285041751,-1627.91,0.00014998,2]
[341919743,1731285041760,-1627.91,0.00014998,2]
[341919744,1731285041769,-1627.91,0.00014998,2]
[341919745,1731285041779,-1627.91,0.00014998,2]
[341919746,1731285041788,-154.92,0.00014998,2]
[341919747,1731285041797,-769.0,0.00014998,2]
[341919748,1731285041807,-769.0,0.00014998,2]
[341919749,1731285041816,-769.0,0.00014998,2]
[341919750,1731285041825,-769.0,0.00014998,2]
[341919751,1731285041834,-769.0,0.00014998,2]
[341919752,1731285041844,-769.0,0.00014998,2]
[341919753,1731285041853,-769.0,0.00014998,2]
[341919754,1731285041863,-769.0,0.00014998,2]
[341919755,1731285041872,-769.0,0.00014998,2]
[341919756,1731285041881,-769.0,0.00014998,2]
[341919757,1731285041891,-769.0,0.00014998,2]
[341919758,1731285041900,-763.27,0.00014998,2]
[341919759,1731285041910,-763.27,0.00014998,2]
[341919760,1731285041919,-763.27,0.00014998,2]
[341919761,1731285041928,-763.27,0.00014998,2]
[341919762,1731285041937,-763.27,0.00014998,2]
[341919763,1731285041946,-763.27,0.00014998,2]
[341919764,1731285041958,-763.27,0.00014998,2]
[341919765,1731285041967,-763.27,0.00014998,2]
[341919766,1731285041976,-763.27,0.00014998,2]
[341919767,1731285041986,-763.27,0.00014998,2]
[341919768,1731285041997,-763.27,0.00014998,2]
[341919769,1731285042006,-500.0,0.00014998,2]
[341919770,1731285042015,-988.0,0.00014998,2]
[341919771,1731285042024,-988.0,0.00014998,2]
[341919772,1731285042034,-988.0,0.00014998,2]
[341919773,1731285042044,-988.0,0.00014998,2]
[341919774,1731285042053,-988.0,0.00014998,2]
[341919775,1731285042062,-988.0,0.00014998,2]
[341919776,1731285042071,-988.0,0.00014998,2]
[341919777,1731285042080,-988.0,0.00014998,2]
[341919778,1731285042089,-988.0,0.00014998,2]
[341919779,1731285042098,-988.0,0.00014998,2]
[341919780,1731285042107,-988.0,0.00014998,2]
[341919781,1731285042116,-763.91,0.00014998,2]
[341919782,1731285042126,-763.91,0.00014998,2]
[341919783,1731285042136,-763.91,0.00014998,2]
[341919784,1731285042145,-763.91,0.00014998,2]
[341919785,1731285042154,-763.91,0.00014998,2]
[341919786,1731285042163,-763.91,0.00014998,2]
[341919787,1731285042173,-763.91,0.00014998,2]
[341919788,1731285042182,-763.91,0.00014998,2]
[341919789,1731285042192,-763.91,0.00014998,2]
[341919790,1731285042201,-763.91,0.00014998,2]
[341919791,1731285042210,-763.91,0.00014998,2]
[341919792,1731285042220,-420.99775779,0.00014998,2]
[341919793,1731285042229,-500.0,0.00014998,2]
[341919794,1731285042240,-239.4424892,0.00014998,2]
[341919795,1731285042249,-571.34938264,0.00014998,2]
[341919796,1731285042259,-500.0,0.00014998,2]
[341919797,1731285042268,-500.0,0.00014998,2]
[341919798,1731285042278,-500.0,0.00014998,2]
[341919799,1731285042287,-500.0,0.00014998,2]
[341919800,1731285042296,-500.0,0.00014998,2]
[341919801,1731285042305,-500.0,0.00014998,2]
[341919802,1731285042314,-500.0,0.00014998,2]
[341919803,1731285042324,-500.0,0.00014998,2]
[341919804,1731285042333,-500.0,0.00014998,2]
[341919805,1731285042343,-345.4682042,0.00014998,2]
[341919806,1731285042352,-252.67747247,0.00014998,2]
[341919807,1731285042362,-500.0,0.00014998,2]
[341919808,1731285042371,-500.0,0.00014998,2]
[341919809,1731285042380,-500.0,0.00014998,2]
[341919810,1731285042390,-500.0,0.00014998,2]
[341919811,1731285042399,-500.0,0.00014998,2]
[341919812,1731285042408,-500.0,0.00014998,2]
[341919813,1731285042417,-500.0,0.00014998,2]
[341919814,1731285042427,-500.0,0.00014998,2]
[341919815,1731285042436,-500.0,0.00014998,2]
[341919816,1731285042445,-617.93025099,0.00014998,2]
[341919817,1731285042454,-500.0,0.00014998,2]
[341919818,1731285042463,-500.0,0.00014998,2]
[341919819,1731285042473,-500.0,0.00014998,2]
[341919820,1731285042483,-500.0,0.00014998,2]
[341919821,1731285042492,-500.0,0.00014998,2]
[341919822,1731285042501,-500.0,0.00014998,2]
[341919823,1731285042511,-500.0,0.00014998,2]
[341919824,1731285042520,-500.0,0.00014998,2]
[341919825,1731285042529,-500.0,0.00014998,2]
[341919826,1731285042538,-500.0,0.00014998,2]
[341919827,1731285042548,-500.0,0.00014998,2]
[341919828,1731285042557,-500.0,0.00014998,2]
[341919829,1731285042566,-500.0,0.00014998,2]
[341919830,1731285042576,-500.0,0.00014998,2]
[341919831,1731285042585,-500.0,0.00014998,2]
[341919832,1731285042594,-500.0,0.00014998,2]
[341919833,1731285042603,-500.0,0.00014998,2]
[341919834,1731285042613,-500.0,0.00014998,2]
[341919835,1731285042622,-500.0,0.00014998,2]
[341919836,1731285042631,-500.0,0.00014998,2]
[341919838,1731285042640,-500.0,0.00014998,2]
[341919839,1731285042650,-500.0,0.00014998,2]
[341919840,1731285042659,-500.0,0.00014998,2]
[341919841,1731285042668,-556.85846857,0.00014998,2]
[341919842,1731285042678,-500.0,0.00014998,2]
[341919843,1731285042687,-500.0,0.00014998,2]
[341919844,1731285042696,-500.0,0.00014998,2]
[341919845,1731285042705,-500.0,0.00014998,2]
[341919846,1731285042714,-500.0,0.00014998,2]
[341919847,1731285042723,-500.0,0.00014998,2]
[341919848,1731285042732,-500.0,0.00014998,2]
[341919850,1731285042742,-500.0,0.00014998,2]
[341919851,1731285042751,-500.0,0.00014998,2]
[341919852,1731285042760,-500.0,0.00014998,2]
[341919854,1731285042769,-500.0,0.00014998,2]
[341919856,1731285042778,-500.0,0.00014998,2]
[341919858,1731285042787,-297.24,0.00014998,2]
[341919859,1731285042797,-500.0,0.00014998,2]
[341919860,1731285042806,-500.0,0.00014998,2]
[341919861,1731285042814,-227.44088112,0.00014998,2]
[341919863,1731285042824,-500.0,0.00014998,2]
[341919865,1731285042833,-500.0,0.00014998,2]
[341919866,1731285042842,-500.0,0.00014998,2]
[341919868,1731285042850,-512.55,0.00014998,2]
[341919870,1731285042859,-1133.56,0.00014998,2]
[341919871,1731285042869,-1133.56,0.00014998,2]
[341919872,1731285042878,-1133.56,0.00014998,2]
[341919873,1731285042887,-1133.56,0.00014998,2]
[341919874,1731285042896,-1133.56,0.00014998,2]
[341919875,1731285042905,-1133.56,0.00014998,2]
[341919876,1731285042915,-1133.56,0.00014998,2]
[341919877,1731285042923,-1133.56,0.00014998,2]
[341919878,1731285042932,-1133.56,0.00014998,2]
[341919879,1731285042942,-1133.56,0.00014998,2]
[341919880,1731285042957,-1133.56,0.00014998,2]
[341919881,1731285042966,-900.02,0.00014998,2]
[341919882,1731285042976,-900.02,0.00014998,2]
[341919883,1731285042986,-900.02,0.00014998,2]
[341919884,1731285042997,-900.02,0.00014998,2]
[341919885,1731285043006,-900.02,0.00014998,2]
[341919886,1731285043015,-900.02,0.00014998,2]
[341919887,1731285043024,-900.02,0.00014998,2]
[341919888,1731285043035,-900.02,0.00014998,2]
[341919889,1731285043044,-900.02,0.00014998,2]
[341919890,1731285043053,-900.02,0.00014998,2]
[341919891,1731285043062,-900.02,0.00014998,2]
[341919892,1731285043071,-500.0,0.00014998,2]
[341919893,1731285043080,-500.0,0.00014998,2]
[341919894,1731285043089,-244.01468411,0.00014998,2]
[341919895,1731285043098,-1078.51,0.00014998,2]
[341919896,1731285043107,-1078.51,0.00014998,2]
[341919897,1731285043116,-1078.51,0.00014998,2]
[341919898,1731285043127,-1078.51,0.00014998,2]
[341919899,1731285043135,-1078.51,0.00014998,2]
[341919900,1731285043144,-1078.51,0.00014998,2]
[341919901,1731285043154,-1078.51,0.00014998,2]
[341919902,1731285043163,-1078.51,0.00014998,2]
[341919903,1731285043172,-1078.51,0.00014998,2]
[341919904,1731285043181,-1078.51,0.00014998,2]
[341919905,1731285043190,-1078.51,0.00014998,2]
[341919906,1731285043199,-500.0,0.00014998,2]
[341919907,1731285043208,-500.0,0.00014998,2]
[341919908,1731285043218,-428.72547329,0.00014998,2]
[341919909,1731285043227,-190.5393726,0.00014998,2]
[341919910,1731285043237,-500.0,0.00014998,2]
[341919911,1731285043246,-500.0,0.00014998,2]
[341919912,1731285043255,-500.0,0.00014998,2]
[341919913,1731285043264,-500.0,0.00014998,2]
[341919914,1731285043273,-1534553.93969917,0.00014999,2]
[341919922,1731285043646,-211921.25013557,0.00014999,2]
[341919926,1731285043889,-500.0,0.00014996,2]
[341919927,1731285043899,-500.0,0.00014997,2]
[341919928,1731285043909,-2002.66927744,0.00014999,2]
[341919929,1731285043921,-286.0869875,0.00014999,2]
[341919930,1731285043933,-864.1063559,0.00014999,2]
[341919931,1731285043945,-555.62279998,0.00014999,2]
[341919932,1731285044012,-500.0,0.00014996,2]
[341919933,1731285044022,-500.0,0.00014996,2]
[341919934,1731285044032,-379.34815612,0.00014996,2]
[341919935,1731285044043,-348.80287373,0.00014996,2]
[341919936,1731285044053,-500.0,0.00014996,2]
[341919937,1731285044062,-822091.71736689,0.00014999,2]
[341919938,1731285044072,-855.7786,0.00014999,2]
[341919939,1731285044082,-868.87676118,0.00014999,2]
[341919940,1731285044091,-1099.89,0.00014999,2]
[341919941,1731285044101,-1099.89,0.00014999,2]
[341919942,1731285044110,-1099.89,0.00014999,2]
[341919943,1731285044121,-1099.89,0.00014999,2]
[341919944,1731285044131,-1099.89,0.00014999,2]
[341919945,1731285044140,-1099.89,0.00014999,2]
[341919946,1731285044149,-1099.89,0.00014999,2]
[341919947,1731285044159,-1099.89,0.00014999,2]
[341919948,1731285044168,-1099.89,0.00014999,2]
[341919949,1731285044178,-1100.09283933,0.00014999,2]
[341919950,1731285044188,-1000.0,0.00014999,2]
[341919951,1731285044198,-1613.4,0.00014999,2]
[341919952,1731285044207,-1613.4,0.00014999,2]
[341919953,1731285044216,-1613.4,0.00014999,2]
[341919954,1731285044225,-1613.4,0.00014999,2]
[341919955,1731285044235,-1613.4,0.00014999,2]
[341919956,1731285044244,-1613.4,0.00014999,2]
[341919957,1731285044254,-1613.4,0.00014999,2]
[341919958,1731285044262,-1613.4,0.00014999,2]
[341919959,1731285044272,-1613.4,0.00014999,2]
[341919960,1731285044281,-1613.48172368,0.00014999,2]
[341919961,1731285044290,-581.9290646,0.00014999,2]
[341919962,1731285044299,-519.8,0.00014999,2]
[341919963,1731285044307,-519.8,0.00014999,2]
[341919964,1731285044317,-519.8,0.00014999,2]
[341919965,1731285044369,-519.8,0.00014999,2]
[341919966,1731285044431,-519.8,0.00014999,2]
[341919967,1731285044517,-519.8,0.00014999,2]
[341919968,1731285044647,-519.8,0.00014999,2]
[341919969,1731285044723,-519.8,0.00014999,2]
[341919970,1731285044826,-519.8,0.00014999,2]
[341919971,1731285044915,-519.9997556,0.00014999,2]
[341919972,1731285045026,-627.72,0.00014999,2]
[341919973,1731285045128,-627.72,0.00014999,2]
[341919974,1731285045221,-627.72,0.00014999,2]
[341919975,1731285045253,-627.72,0.00014999,2]
[341919976,1731285045263,-627.72,0.00014999,2]
[341919977,1731285045274,-627.72,0.00014999,2]
[341919978,1731285045283,-627.72,0.00014999,2]
[341919979,1731285045293,-627.72,0.00014999,2]
[341919980,1731285045302,-627.72,0.00014999,2]
[341919981,1731285045312,-627.76456106,0.00014999,2]
[341919982,1731285045321,-500.0,0.00014999,2]
[341919983,1731285045330,-500.0,0.00014999,2]
[341919984,1731285045340,-500.0,0.00014999,2]
[341919985,1731285045349,-500.0,0.00014999,2]
[341919986,1731285045363,-178.5,0.00014999,2]
[341919987,1731285045374,-514.1,0.00014999,2]
[341919988,1731285045383,-514.1,0.00014999,2]
[341919989,1731285045393,-514.1,0.00014999,2]
[341919990,1731285045402,-514.1,0.00014999,2]
[341919991,1731285045412,-514.1,0.00014999,2]
[341919992,1731285045421,-514.1,0.00014999,2]
[341919993,1731285045431,-514.1,0.00014999,2]
[341919994,1731285045440,-514.1,0.00014999,2]
[341919995,1731285045450,-514.1,0.00014999,2]
[341919996,1731285045460,-514.1605524,0.00014999,2]
[341919997,1731285045469,-940.46,0.00014999,2]
[341919998,1731285045478,-940.46,0.00014999,2]
[341919999,1731285045489,-940.46,0.00014999,2]
[341920000,1731285045498,-940.46,0.00014999,2]
[341920001,1731285045508,-940.46,0.00014999,2]
[341920002,1731285045518,-940.46,0.00014999,2]
[341920003,1731285045527,-940.46,0.00014999,2]
[341920004,1731285045537,-940.46,0.00014999,2]
[341920005,1731285045547,-940.46,0.00014999,2]
[341920006,1731285045557,-940.49981294,0.00014999,2]
[341920007,1731285045567,-500.0,0.00014999,2]
[341920008,1731285045578,-500.0,0.00014999,2]
[341920009,1731285045587,-500.0,0.00014999,2]
[341920010,1731285045596,-500.0,0.00014999,2]
[341920011,1731285045605,-500.0,0.00014999,2]
[341920013,1731285045614,-363.31485922,0.00014999,2]
[341920014,1731285045623,-1627.91,0.00014999,2]
[341920015,1731285045633,-1627.91,0.00014999,2]
[341920016,1731285045643,-1627.91,0.00014999,2]
[341920017,1731285045653,-1627.91,0.00014999,2]
[341920018,1731285045662,-1627.91,0.00014999,2]
[341920019,1731285045671,-1627.91,0.00014999,2]
[341920021,1731285045681,-1627.91,0.00014999,2]
[341920022,1731285045690,-1627.91,0.00014999,2]
[341920023,1731285045701,-1628.08173118,0.00014999,2]
[341920024,1731285045711,-769.0,0.00014999,2]
[341920025,1731285045722,-769.0,0.00014999,2]
[341920026,1731285045732,-437.85443885,0.00014999,2]
[341920027,1731285045748,-331.14556115,0.00014999,2]
[341920028,1731285045758,-769.0,0.00014999,2]
[341920029,1731285045768,-769.0,0.00014999,2]
[341920030,1731285045777,-769.0,0.00014999,2]
[341920031,1731285045787,-769.0,0.00014999,2]
[341920032,1731285045797,-571.18777218,0.00014999,2]
[341920033,1731285045811,-197.81222782,0.00014999,2]
[341920034,1731285045821,-769.07,0.00014999,2]
[341920035,1731285045830,-763.27,0.00014999,2]
[341920036,1731285045840,-763.27,0.00014999,2]
[341920037,1731285045849,-763.27,0.00014999,2]
[341920038,1731285045859,-763.27,0.00014999,2]
[341920039,1731285045869,-763.27,0.00014999,2]
[341920040,1731285045879,-763.27,0.00014999,2]
[341920041,1731285045888,-763.27,0.00014999,2]
[341920042,1731285045897,-763.27,0.00014999,2]
[341920043,1731285045907,-763.27,0.00014999,2]
[341920044,1731285045916,-763.44645972,0.00014999,2]
[341920045,1731285045926,-988.0,0.00014999,2]
[341920046,1731285045936,-988.0,0.00014999,2]
[341920047,1731285045946,-988.0,0.00014999,2]
[341920048,1731285045958,-988.0,0.00014999,2]
[341920049,1731285045968,-988.0,0.00014999,2]
[341920050,1731285045977,-988.0,0.00014999,2]
[341920051,1731285045987,-988.0,0.00014999,2]
[341920052,1731285045996,-988.0,0.00014999,2]
[341920053,1731285046006,-988.06494839,0.00014999,2]
[341920054,1731285046015,-763.91,0.00014999,2]
[341920055,1731285046031,-763.91,0.00014999,2]
[341920056,1731285046046,-763.91,0.00014999,2]
[341920057,1731285046055,-763.91,0.00014999,2]
[341920058,1731285046065,-763.91,0.00014999,2]
[341920059,1731285046075,-763.91,0.00014999,2]
[341920060,1731285046084,-763.91,0.00014999,2]
[341920061,1731285046093,-763.91,0.00014999,2]
[341920062,1731285046107,-763.91,0.00014999,2]
[341920063,1731285046123,-764.10706753,0.00014999,2]
[341920064,1731285046136,-500.0,0.00014999,2]
[341920065,1731285046146,-500.0,0.00014999,2]
[341920066,1731285046156,-500.0,0.00014999,2]
[341920067,1731285046165,-500.0,0.00014999,2]
[341920068,1731285046175,-500.0,0.00014999,2]
[341920069,1731285046185,-334.21584964,0.00014999,2]
[341920070,1731285046195,-500.0,0.00014999,2]
[341920071,1731285046205,-500.0,0.00014999,2]
[341920072,1731285046215,-500.0,0.00014999,2]
[341920073,1731285046226,-500.0,0.00014999,2]
[341920074,1731285046238,-411.66155294,0.00014999,2]
[341920075,1731285046248,-500.0,0.00014999,2]
[341920076,1731285046257,-570.05331496,0.00014999,2]
[341920077,1731285046267,-1133.56,0.00014999,2]
[341920078,1731285046278,-1133.56,0.00014999,2]
[341920079,1731285046287,-1133.56,0.00014999,2]
[341920080,1731285046297,-1133.56,0.00014999,2]
[341920081,1731285046307,-1133.56,0.00014999,2]
[341920082,1731285046317,-1133.56,0.00014999,2]
[341920083,1731285046327,-1133.56,0.00014999,2]
[341920084,1731285046338,-1133.56,0.00014999,2]
[341920085,1731285046350,-1133.67,0.00014999,2]
[341920086,1731285046361,-900.02,0.00014999,2]
[341920087,1731285046373,-900.02,0.00014999,2]
[341920088,1731285046384,-900.02,0.00014999,2]
[341920089,1731285046394,-900.02,0.00014999,2]
[341920090,1731285046404,-900.02,0.00014999,2]
[341920091,1731285046415,-900.02,0.00014999,2]
[341920092,1731285046426,-328.96237238,0.00014999,2]
[341920093,1731285046546,-424.98349481,0.00014996,2]
[341920094,1731285046556,-571.05762762,0.00014999,2]
[341920095,1731285046565,-900.02,0.00014999,2]
[341920096,1731285046575,-900.02,0.00014999,2]
[341920097,1731285046584,-900.16279421,0.00014999,2]
[341920098,1731285046595,-1078.51,0.00014999,2]
[341920099,1731285046605,-1078.51,0.00014999,2]
[341920100,1731285046615,-1078.51,0.00014999,2]
[341920101,1731285046625,-1078.51,0.00014999,2]
[341920102,1731285046636,-991.7861127,0.00014999,2]
[341920103,1731285046649,-86.7238873,0.00014999,2]
[341920104,1731285046659,-218.88612978,0.00014999,2]
[341920105,1731285046771,-859.62387022,0.00014999,2]
[341920106,1731285046781,-1078.51,0.00014999,2]
[341920107,1731285046791,-1078.51,0.00014999,2]
[341920108,1731285046801,-1078.59660931,0.00014999,2]
[341920109,1731285046811,-5206.56543414,0.00015,2]
[341920110,1731285046824,-19153.17345,0.00015,2]
[341920111,1731285046841,-11952.04849693,0.00015,2]
[341920112,1731285046854,-5005.85667018,0.00015,2]
[341920113,1731285046867,-3512.81266987,0.00015,2]
[341920114,1731285046887,-7796.70506556,0.00015,2]
[341920115,1731285047002,-500.0,0.00014997,2]
[341920116,1731285047012,-289.77312663,0.00014997,2]
[341920117,1731285047022,-8176.28881954,0.00015,2]
[341920118,1731285047035,-15409.26312,0.00015,2]
[341920119,1731285047050,-57880.645,0.00015,2]
[341920120,1731285047062,-59107.658,0.00015,2]
[341920121,1731285047074,-806806.6690683,0.00015,2]
[341920122,1731285047087,-11764.9576,0.00015,2]
[341920123,1731285047099,-8392.4968,0.00015,2]
[341920124,1731285047135,-3000.00068778,0.00015,2]
[341920126,1731285278116,200.0,0.000205,30]
[341920128,1731285380280,458.39260838,0.00027,60]
[341920133,1731285641981,760.02,0.00011472,2]
[341920149,1731286232067,-805.693264,0.00013155,2]
[341920150,1731286232126,-1157.366736,0.00013155,2]
[341920151,1731286232135,-511.81211513,0.00013155,2]
[341920152,1731286232147,-108.32788487,0.00013155,2]
[341920153,1731286232156,-250.0,0.000132,2]
[341920154,1731286232166,-911.92,0.00013212,2]
[341920155,1731286232175,-1112.39,0.00013213,2]
[341920156,1731286232185,-1147.62834046,0.00013225,2]
[341920157,1731286232194,-470.21,0.00013226,2]
[341920158,1731286232203,-50.58394092,0.00013232,2]
[341920159,1731286232214,-310.80581958,0.00013232,2]
[341920160,1731286232299,-1582.6602395,0.00013232,2]
[341920161,1731286232309,-704.13346212,0.00013238,2]
[341920162,1731286232414,-4007.7195302,0.00013238,2]
[341920163,1731286232427,-121.22820768,0.00013238,2]
[341920164,1731286232436,-589.37,0.00013242,2]
[341920165,1731286232446,-167.13,0.00013246,2]
[341920166,1731286232455,-354.8,0.00013251,2]
[341920167,1731286232464,-150.0,0.00013251,2]
[341920168,1731286232473,-150.0,0.00013315,2]
[341920170,1731286232482,-250.0,0.00013319,2]
[341920171,1731286232491,-509.62078872,0.00013319,2]
[341920172,1731286232503,-4039.40921128,0.00013319,2]
[341920173,1731286232512,-150.99,0.00013338,2]
[341920174,1731286232521,-3680.38,0.00013338,2]
[341920175,1731286232530,-347.54,0.00013338,2]
[341920176,1731286232539,-1339.6,0.00013338,2]
[341920177,1731286232548,-200.0,0.0001334,2]
[341920178,1731286232557,-64.85157351,0.0001338,2]
[341920186,1731286238083,-459.89842649,0.0001338,2]
[341920187,1731286238093,-1000.0,0.00013408,2]
[341920188,1731286238102,-200.0,0.00013699,2]
[341920189,1731286238112,-760.02,0.00013735,2]
[341920190,1731286238122,-185.11,0.00013825,2]
[341920191,1731286238131,-284.45056455,0.00013905,2]
[341920192,1731286238156,-304.91943545,0.00013905,2]
[341920193,1731286238165,-95.21233626,0.00013974,2]
[341920194,1731286238248,-54.78766374,0.00013974,2]
[341920195,1731286238257,-1451.06406252,0.00013975,2]
[341920196,1731286238269,-401.35593748,0.00013975,2]
[341920197,1731286238278,-434.58287817,0.00013975,2]
[341920198,1731286238288,-3774.17959658,0.00013975,2]
[341920199,1731286238363,-5940.34185658,0.00013975,2]
[341920219,1731286240030,-590.77999999,0.00013975,2]
[341920220,1731286240195,-592.3,0.00013975,2]
[341920221,1731286240254,-994.11484087,0.00013975,2]
[341920222,1731286240265,-1775.18706737,0.00013975,2]
[341920223,1731286240277,-1581.37000001,0.00013975,2]
[341920224,1731286240310,-297.67376043,0.00013975,2]
[341920225,1731286240319,-199.64,0.0001406,2]
[341920226,1731286240328,-288.52168923,0.00014066,2]
[341920231,1731286243119,-711.47831077,0.00014066,2]
[341920232,1731286243129,-199.64,0.00014067,2]
[341920233,1731286243139,-199.64,0.00014074,2]
[341920234,1731286243148,-199.64,0.00014082,2]
[341920235,1731286243157,-199.64,0.00014089,2]
[341920236,1731286243167,-199.64,0.00014097,2]
[341920237,1731286243177,-199.64,0.00014104,2]
[341920238,1731286243186,-199.64,0.00014111,2]
[341920239,1731286243195,-199.64,0.00014119,2]
[341920240,1731286243205,-199.64,0.00014126,2]
[341920241,1731286243214,-199.64,0.00014134,2]
[341920242,1731286243223,-199.64,0.00014141,2]
[341920243,1731286243232,-199.64,0.00014148,2]
[341920244,1731286243243,-199.64,0.00014156,2]
[341920245,1731286243252,-199.64,0.00014163,2]
[341920246,1731286243262,-199.64,0.00014171,2]
[341920247,1731286243271,-199.64,0.00014178,2]
[341920248,1731286243280,-199.64,0.00014185,2]
[341920249,1731286243289,-184.56827628,0.00014193,2]
[341920250,1731286243334,-15.07172372,0.00014193,2]
[341920251,1731286243346,-199.64,0.000142,2]